[Event "*** Titled Tuesday Blitz"]
[Site "Chess.com"]
[Date "2021.02.02"]
[Round "3"]
[White "Chuchofrio1"]
[Black "sokidze"]
[Result "0-1"]
[WhiteElo "2256"]
[BlackElo "2505"]
[TimeControl "180+1"]
[EndTime "10:33:29 PST"]
[Termination "sokidze won by checkmate"]

1. e4 {[%clk 0:03:00.9]} 1... c5 {[%clk 0:02:59.8]} 2. Nc3 {[%clk 0:03:00.6]}
2... Nc6 {[%clk 0:02:59.9]} 3. Bb5 {[%clk 0:02:59.1]} 3... g6 {[%clk 0:02:56.4]}
4. Bxc6 {[%clk 0:02:55.9]} 4... dxc6 {[%clk 0:02:56.3]} 5. f4 {[%clk 0:02:55.7]}
5... Bg7 {[%clk 0:02:56.7]} 6. Nf3 {[%clk 0:02:54.7]} 6... Bg4 {[%clk
0:02:37.9]} 7. O-O {[%clk 0:02:51.2]} 7... c4 {[%clk 0:02:37.9]} 8. h3 {[%clk
0:02:46.5]} 8... Bxf3 {[%clk 0:02:37.6]} 9. Qxf3 {[%clk 0:02:47.4]} 9... Nf6
{[%clk 0:02:36.2]} 10. f5 {[%clk 0:02:43.4]} 10... O-O {[%clk 0:02:32.1]} 11. d3
{[%clk 0:02:40.6]} 11... cxd3 {[%clk 0:02:27.8]} 12. cxd3 {[%clk 0:02:41.5]}
12... Nd7 {[%clk 0:02:28.1]} 13. Bf4 {[%clk 0:02:40.6]} 13... Qb6+ {[%clk
0:02:21.7]} 14. Kh1 {[%clk 0:02:39.6]} 14... Qxb2 {[%clk 0:02:21.8]} 15. d4
{[%clk 0:02:10.8]} 15... Bxd4 {[%clk 0:01:58]} 16. Rac1 {[%clk 0:02:07.1]} 16...
Bg7 {[%clk 0:01:40.5]} 17. h4 {[%clk 0:01:59.4]} 17... h5 {[%clk 0:01:22.2]} 18.
Rf2 {[%clk 0:01:55]} 18... Qa3 {[%clk 0:01:15.7]} 19. Qg3 {[%clk 0:01:48.8]}
19... Kh7 {[%clk 0:01:13.8]} 20. Rcc2 {[%clk 0:01:38.4]} 20... Nf6 {[%clk
0:01:03.3]} 21. e5 {[%clk 0:01:29]} 21... Ng4 {[%clk 0:01:01.6]} 22. Rfe2 {[%clk
0:01:27.4]} 22... Rad8 {[%clk 0:00:51.8]} 23. f6 {[%clk 0:01:17]} 23... exf6
{[%clk 0:00:48.7]} 24. exf6 {[%clk 0:01:14]} 24... Bxf6 {[%clk 0:00:48.5]} 25.
Re1 {[%clk 0:01:09.3]} 25... Rfe8 {[%clk 0:00:46.4]} 26. Rec1 {[%clk 0:01:04.5]}
26... Rd4 {[%clk 0:00:42.2]} 27. Bg5 {[%clk 0:01:02]} 27... Bxg5 {[%clk
0:00:38.4]} 28. hxg5 {[%clk 0:01:02.9]} 28... Qd6 {[%clk 0:00:37.6]} 29. Qxd6
{[%clk 0:00:58.8]} 29... Rxd6 {[%clk 0:00:38.5]} 30. Rf1 {[%clk 0:00:58.4]}
30... Kg7 {[%clk 0:00:37.2]} 31. Re2 {[%clk 0:00:56.3]} 31... Rxe2 {[%clk
0:00:36.6]} 32. Nxe2 {[%clk 0:00:57.2]} 32... Rd5 {[%clk 0:00:36.7]} 33. Nc3
{[%clk 0:00:47.9]} 33... Rxg5 {[%clk 0:00:36.5]} 34. Ne4 {[%clk 0:00:47.5]}
34... Re5 {[%clk 0:00:36.9]} 35. Nd6 {[%clk 0:00:46.3]} 35... Re7 {[%clk
0:00:37.5]} 36. Nc8 {[%clk 0:00:46]} 36... Re2 {[%clk 0:00:32]} 37. Nd6 {[%clk
0:00:43.9]} 37... f5 {[%clk 0:00:31.2]} 38. Nxb7 {[%clk 0:00:43.4]} 38... Rxa2
{[%clk 0:00:31.1]} 39. Nc5 {[%clk 0:00:39.3]} 39... Rc2 {[%clk 0:00:28.9]} 40.
Ne6+ {[%clk 0:00:38.9]} 40... Kf6 {[%clk 0:00:28]} 41. Nd4 {[%clk 0:00:39.2]}
41... Rc4 {[%clk 0:00:28.1]} 42. Nb3 {[%clk 0:00:38.2]} 42... Rb4 {[%clk
0:00:23.2]} 43. Nc5 {[%clk 0:00:34.3]} 43... Rb5 {[%clk 0:00:22.2]} 44. Nd7+
{[%clk 0:00:33.2]} 44... Kg5 {[%clk 0:00:21.9]} 45. Ra1 {[%clk 0:00:27.5]} 45...
a5 {[%clk 0:00:21.8]} 46. Nf8 {[%clk 0:00:23.3]} 46... a4 {[%clk 0:00:16.2]} 47.
Ne6+ {[%clk 0:00:23.5]} 47... Kf6 {[%clk 0:00:16.6]} 48. Nf8 {[%clk 0:00:21.9]}
48... Rb4 {[%clk 0:00:14.8]} 49. Kg1 {[%clk 0:00:21]} 49... a3 {[%clk
0:00:14.6]} 50. Kf1 {[%clk 0:00:21.3]} 50... Ne3+ {[%clk 0:00:10.8]} 51. Ke2
{[%clk 0:00:21]} 51... Nxg2 {[%clk 0:00:09.5]} 52. Rxa3 {[%clk 0:00:20.8]} 52...
Nf4+ {[%clk 0:00:09.6]} 53. Kf3 {[%clk 0:00:20.7]} 53... Ne6 {[%clk 0:00:10]}
54. Nd7+ {[%clk 0:00:20.6]} 54... Ke7 {[%clk 0:00:10.1]} 55. Ne5 {[%clk
0:00:21.2]} 55... Rf4+ {[%clk 0:00:10.4]} 56. Kg3 {[%clk 0:00:21.2]} 56... Kf6
{[%clk 0:00:10.3]} 57. Nxc6 {[%clk 0:00:18.7]} 57... Rg4+ {[%clk 0:00:10.8]} 58.
Kh3 {[%clk 0:00:18.7]} 58... Nf4+ {[%clk 0:00:11]} 59. Kh2 {[%clk 0:00:18.4]}
59... h4 {[%clk 0:00:11.5]} 60. Nd4 {[%clk 0:00:17.3]} 60... h3 {[%clk
0:00:10.4]} 61. Rf3 {[%clk 0:00:15]} 61... g5 {[%clk 0:00:09.8]} 62. Kh1 {[%clk
0:00:11.7]} 62... Kg6 {[%clk 0:00:09.1]} 63. Rf1 {[%clk 0:00:10.9]} 63... Rg2
{[%clk 0:00:05.2]} 64. Nf3 {[%clk 0:00:10.9]} 64... Ra2 {[%clk 0:00:03.9]} 65.
Rb1 {[%clk 0:00:09.4]} 65... g4 {[%clk 0:00:04]} 66. Ne1 {[%clk 0:00:06.9]}
66... g3 {[%clk 0:00:03.9]} 67. Nf3 {[%clk 0:00:06.5]} 67... g2+ {[%clk
0:00:03.4]} 68. Kg1 {[%clk 0:00:06.7]} 68... Ne2+ {[%clk 0:00:03.7]} 69. Kh2
{[%clk 0:00:07.2]} 69... Nf4 {[%clk 0:00:03]} 70. Kg1 {[%clk 0:00:05.2]} 70...
Kh5 {[%clk 0:00:03.2]} 71. Kh2 {[%clk 0:00:05.2]} 71... Kg4 {[%clk 0:00:03.4]}
72. Ng1 {[%clk 0:00:05.7]} 72... Rf2 {[%clk 0:00:02.9]} 73. Rb4 {[%clk
0:00:06.2]} 73... Rf1 {[%clk 0:00:03.2]} 74. Ra4 {[%clk 0:00:05]} 74... Kg5
{[%clk 0:00:03.7]} 75. Rxf4 {[%clk 0:00:02.5]} 75... Rxf4 {[%clk 0:00:02.8]} 76.
Nxh3+ {[%clk 0:00:03.4]} 76... Kg4 {[%clk 0:00:02.9]} 77. Nxf4 {[%clk
0:00:04.2]} 77... Kxf4 {[%clk 0:00:03.8]} 78. Kxg2 {[%clk 0:00:05.1]} 78... Ke3
{[%clk 0:00:04.4]} 79. Kf1 {[%clk 0:00:05.3]} 79... Kf3 {[%clk 0:00:04.9]} 80.
Kg1 {[%clk 0:00:05.4]} 80... Ke2 {[%clk 0:00:05.3]} 81. Kh2 {[%clk 0:00:06.3]}
81... f4 {[%clk 0:00:05.7]} 82. Kg2 {[%clk 0:00:06.3]} 82... f3+ {[%clk
0:00:06.6]} 83. Kh3 {[%clk 0:00:07.2]} 83... f2 {[%clk 0:00:07.2]} 84. Kg4
{[%clk 0:00:08.1]} 84... f1=Q {[%clk 0:00:07.6]} 85. Kh5 {[%clk 0:00:09]} 85...
Ke3 {[%clk 0:00:08.1]} 86. Kg6 {[%clk 0:00:09.9]} 86... Qf4 {[%clk 0:00:08.1]}
87. Kh7 {[%clk 0:00:10.8]} 87... Qg3 {[%clk 0:00:08.6]} 88. Kh6 {[%clk 0:00:11]}
88... Kf4 {[%clk 0:00:09.3]} 89. Kh5 {[%clk 0:00:11.5]} 89... Qg5# {[%clk
0:00:08.3]} 0-1

[Event "*** Titled Tuesday Blitz"]
[Site "Chess.com"]
[Date "2021.02.02"]
[Round "3"]
[White "FlySooHigh"]
[Black "SaraciNderim"]
[Result "0-1"]
[WhiteElo "2603"]
[BlackElo "2823"]
[TimeControl "180+1"]
[EndTime "10:33:54 PST"]
[Termination "SaraciNderim won by resignation"]

1. e4 {[%clk 0:03:00.9]} 1... e5 {[%clk 0:02:58.9]} 2. Nf3 {[%clk 0:03:00.8]}
2... Nc6 {[%clk 0:02:58.4]} 3. Bc4 {[%clk 0:03:01.1]} 3... Bc5 {[%clk
0:02:57.9]} 4. c3 {[%clk 0:03:00.9]} 4... Nf6 {[%clk 0:02:57.8]} 5. d3 {[%clk
0:03:01.1]} 5... d6 {[%clk 0:02:57.2]} 6. Bb3 {[%clk 0:03:00.6]} 6... a6 {[%clk
0:02:57.1]} 7. O-O {[%clk 0:03:00.2]} 7... h6 {[%clk 0:02:55.3]} 8. Nbd2 {[%clk
0:03:00.1]} 8... O-O {[%clk 0:02:54.1]} 9. h3 {[%clk 0:02:58.9]} 9... Re8 {[%clk
0:02:51.5]} 10. Re1 {[%clk 0:02:58.9]} 10... Be6 {[%clk 0:02:49.8]} 11. Bc2
{[%clk 0:02:54.6]} 11... Ba7 {[%clk 0:02:49.3]} 12. Nh2 {[%clk 0:02:52.1]} 12...
d5 {[%clk 0:02:48]} 13. Qf3 {[%clk 0:02:52.4]} 13... dxe4 {[%clk 0:02:41.9]} 14.
dxe4 {[%clk 0:02:53.3]} 14... Ne7 {[%clk 0:02:26]} 15. Ndf1 {[%clk 0:02:52.4]}
15... Ng6 {[%clk 0:02:25.2]} 16. Ne3 {[%clk 0:02:37.1]} 16... Nh7 {[%clk
0:01:49.7]} 17. Nf5 {[%clk 0:02:27.1]} 17... Ng5 {[%clk 0:01:47.7]} 18. Qg4
{[%clk 0:02:21.8]} 18... Qf6 {[%clk 0:01:19.7]} 19. h4 {[%clk 0:02:08.6]} 19...
Nh7 {[%clk 0:00:55.7]} 20. h5 {[%clk 0:01:57.7]} 20... Nf4 {[%clk 0:00:51.8]}
21. Bxf4 {[%clk 0:01:36]} 21... exf4 {[%clk 0:00:49.3]} 22. Qxf4 {[%clk
0:01:36.4]} 22... Rad8 {[%clk 0:00:19.8]} 23. Ng4 {[%clk 0:01:11.1]} 23... Qg5
{[%clk 0:00:19.9]} 24. Qxg5 {[%clk 0:00:58.8]} 24... Nxg5 {[%clk 0:00:20.8]} 25.
Rad1 {[%clk 0:00:50]} 25... Kf8 {[%clk 0:00:20.9]} 26. a3 {[%clk 0:00:49]} 26...
Rxd1 {[%clk 0:00:20]} 27. Rxd1 {[%clk 0:00:47.8]} 27... Bc8 {[%clk 0:00:20.1]}
28. Nge3 {[%clk 0:00:29.2]} 28... Bxe3 {[%clk 0:00:18]} 29. fxe3 {[%clk
0:00:20.3]} 29... Bxf5 {[%clk 0:00:17]} 30. exf5 {[%clk 0:00:20.6]} 30... Rxe3
{[%clk 0:00:17.6]} 31. Kf2 {[%clk 0:00:21.2]} 31... Re8 {[%clk 0:00:17.1]} 32.
Rd4 {[%clk 0:00:20.6]} 32... Ke7 {[%clk 0:00:16.6]} 33. g4 {[%clk 0:00:19.9]}
33... c5 {[%clk 0:00:15.7]} 34. Rd5 {[%clk 0:00:18.9]} 34... Rc8 {[%clk
0:00:15.9]} 35. a4 {[%clk 0:00:18.9]} 35... f6 {[%clk 0:00:16.3]} 36. a5 {[%clk
0:00:18.7]} 36... Nf7 {[%clk 0:00:16.6]} 37. Ba4 {[%clk 0:00:16.3]} 37... Ne5
{[%clk 0:00:16.7]} 38. Kg3 {[%clk 0:00:16.6]} 38... Rc7 {[%clk 0:00:16.7]} 39.
Kf4 {[%clk 0:00:14.3]} 39... c4 {[%clk 0:00:17.2]} 40. Kg3 {[%clk 0:00:14]}
40... Rc8 {[%clk 0:00:17.2]} 41. Bc2 {[%clk 0:00:12.8]} 41... Rb8 {[%clk
0:00:17.6]} 42. Be4 {[%clk 0:00:13.2]} 42... b6 {[%clk 0:00:17.7]} 43. axb6
{[%clk 0:00:12.5]} 43... Rxb6 {[%clk 0:00:18.6]} 44. Rd2 {[%clk 0:00:13.3]}
44... a5 {[%clk 0:00:19]} 45. Kf4 {[%clk 0:00:12.8]} 45... a4 {[%clk 0:00:19.4]}
46. Bf3 {[%clk 0:00:10.5]} 46... Rb3 {[%clk 0:00:19]} 47. Be4 {[%clk 0:00:10.3]}
47... a3 {[%clk 0:00:19]} 48. bxa3 {[%clk 0:00:10.1]} 48... Rxa3 {[%clk
0:00:19.5]} 49. Rc2 {[%clk 0:00:09.7]} 49... Ra1 {[%clk 0:00:19.4]} 50. Rb2
{[%clk 0:00:08.5]} 50... Rf1+ {[%clk 0:00:18.1]} 51. Ke3 {[%clk 0:00:08.1]}
51... Nxg4+ {[%clk 0:00:18.5]} 52. Kd4 {[%clk 0:00:08.8]} 52... Rd1+ {[%clk
0:00:18.3]} 53. Kxc4 {[%clk 0:00:08]} 53... Ne5+ {[%clk 0:00:18.5]} 54. Kc5
{[%clk 0:00:08.5]} 54... Nd7+ {[%clk 0:00:18.7]} 55. Kc4 {[%clk 0:00:08.3]}
55... Kd6 {[%clk 0:00:17.5]} 56. Rb7 {[%clk 0:00:07.6]} 56... Ne5+ {[%clk
0:00:17.8]} 57. Kb3 {[%clk 0:00:06.5]} 57... Rg1 {[%clk 0:00:16.8]} 58. Ra7
{[%clk 0:00:05.8]} 58... Kc5 {[%clk 0:00:16.9]} 59. Rc7+ {[%clk 0:00:04.5]}
59... Kb6 {[%clk 0:00:17.2]} 60. Rb7+ {[%clk 0:00:05.1]} 60... Kc5 {[%clk
0:00:17.6]} 61. Rc7+ {[%clk 0:00:05.5]} 61... Kd6 {[%clk 0:00:18.1]} 62. Ra7
{[%clk 0:00:06.1]} 62... Rg4 {[%clk 0:00:18.1]} 63. Ba8 {[%clk 0:00:04.5]} 63...
Rg1 {[%clk 0:00:16.9]} 64. Ra6+ {[%clk 0:00:04.2]} 64... Kc7 {[%clk 0:00:17.1]}
65. Bd5 {[%clk 0:00:03.5]} 65... Rg5 {[%clk 0:00:15.1]} 66. c4 {[%clk
0:00:03.2]} 66... Rxf5 {[%clk 0:00:15]} 67. Ra7+ {[%clk 0:00:03.7]} 67... Kd6
{[%clk 0:00:15]} 68. Rxg7 {[%clk 0:00:04.6]} 68... Rxh5 {[%clk 0:00:14.4]} 69.
Kb4 {[%clk 0:00:04.6]} 69... Nd3+ {[%clk 0:00:14.3]} 70. Kb5 {[%clk 0:00:04.3]}
70... Nf4 {[%clk 0:00:14.5]} 71. Rf7 {[%clk 0:00:03.8]} 71... Nxd5 {[%clk
0:00:14.7]} 72. cxd5 {[%clk 0:00:04.7]} 72... Rxd5+ {[%clk 0:00:14.8]} 73. Kb4
{[%clk 0:00:05.6]} 73... Ke5 {[%clk 0:00:14.4]} 74. Kc4 {[%clk 0:00:06.1]} 74...
Rd8 {[%clk 0:00:14.6]} 75. Rh7 {[%clk 0:00:05.8]} 75... f5 {[%clk 0:00:14.2]}
76. Rxh6 {[%clk 0:00:06.3]} 76... Ke4 {[%clk 0:00:14.7]} 77. Rh1 {[%clk
0:00:03.5]} 77... f4 {[%clk 0:00:14.8]} 78. Re1+ {[%clk 0:00:01.5]} 78... Kf3
{[%clk 0:00:14.9]} 79. Rf1+ {[%clk 0:00:02.4]} 79... Ke3 {[%clk 0:00:15.3]} 80.
Re1+ {[%clk 0:00:02.8]} 80... Kf2 {[%clk 0:00:15.7]} 81. Re6 {[%clk 0:00:03.7]}
81... f3 {[%clk 0:00:15.7]} 82. Kc3 {[%clk 0:00:04.6]} 82... Kf1 {[%clk
0:00:15.7]} 83. Rf6 {[%clk 0:00:05.5]} 83... f2 {[%clk 0:00:15.9]} 84. Kc2
{[%clk 0:00:06]} 84... Rd5 {[%clk 0:00:16]} 85. Kc3 {[%clk 0:00:05.8]} 85... Kg2
{[%clk 0:00:16.1]} 86. Rg6+ {[%clk 0:00:06.1]} 86... Kf3 {[%clk 0:00:16]} 87.
Rf6+ {[%clk 0:00:06.7]} 87... Kg3 {[%clk 0:00:16.3]} 88. Kc2 {[%clk 0:00:06.7]}
88... Rd4 {[%clk 0:00:15.5]} 89. Rg6+ {[%clk 0:00:06.6]} 89... Rg4 {[%clk
0:00:15.5]} 90. Rf6 {[%clk 0:00:06.7]} 90... Rf4 {[%clk 0:00:15.9]} 91. Rxf4
{[%clk 0:00:06.4]} 91... Kxf4 {[%clk 0:00:15.8]} 0-1

[Event "*** Titled Tuesday Blitz"]
[Site "Chess.com"]
[Date "2021.02.02"]
[Round "3"]
[White "sorrm8thatscheckm8"]
[Black "MrrRefrao"]
[Result "0-1"]
[WhiteElo "2562"]
[BlackElo "2401"]
[TimeControl "180+1"]
[EndTime "10:34:08 PST"]
[Termination "MrrRefrao won by checkmate"]

1. d4 {[%clk 0:03:00.9]} 1... Nf6 {[%clk 0:02:59.1]} 2. c4 {[%clk 0:02:58.9]}
2... g6 {[%clk 0:02:58.9]} 3. Nc3 {[%clk 0:02:58.7]} 3... d5 {[%clk 0:02:59.4]}
4. cxd5 {[%clk 0:02:59.6]} 4... Nxd5 {[%clk 0:02:59.7]} 5. e4 {[%clk 0:03:00.5]}
5... Nxc3 {[%clk 0:02:59.8]} 6. bxc3 {[%clk 0:03:01.4]} 6... Bg7 {[%clk
0:02:59.9]} 7. Bc4 {[%clk 0:03:02.1]} 7... c5 {[%clk 0:02:57.8]} 8. Ne2 {[%clk
0:03:02.5]} 8... O-O {[%clk 0:02:55.6]} 9. Be3 {[%clk 0:03:03]} 9... Nc6 {[%clk
0:02:53.6]} 10. O-O {[%clk 0:03:03.3]} 10... Bg4 {[%clk 0:02:38.7]} 11. f3
{[%clk 0:03:02.6]} 11... Bd7 {[%clk 0:02:38.8]} 12. Qd2 {[%clk 0:03:02.3]} 12...
Rc8 {[%clk 0:02:27.6]} 13. Rac1 {[%clk 0:03:01.2]} 13... cxd4 {[%clk 0:02:13.4]}
14. cxd4 {[%clk 0:02:59.7]} 14... Qa5 {[%clk 0:02:09.3]} 15. Qxa5 {[%clk
0:02:56.1]} 15... Nxa5 {[%clk 0:02:10.2]} 16. Bd3 {[%clk 0:02:55.7]} 16... b6
{[%clk 0:02:01.1]} 17. Bg5 {[%clk 0:02:54.2]} 17... e6 {[%clk 0:01:56.1]} 18.
Be7 {[%clk 0:02:52.7]} 18... Rxc1 {[%clk 0:01:51.1]} 19. Rxc1 {[%clk 0:02:51.2]}
19... Rc8 {[%clk 0:01:51.5]} 20. Rxc8+ {[%clk 0:02:49.7]} 20... Bxc8 {[%clk
0:01:52.4]} 21. Bb4 {[%clk 0:02:45.7]} 21... Nc6 {[%clk 0:01:24.3]} 22. Bc3
{[%clk 0:02:44.8]} 22... f5 {[%clk 0:01:09.6]} 23. Kf2 {[%clk 0:02:41.3]} 23...
Kf7 {[%clk 0:01:05.1]} 24. Bc4 {[%clk 0:02:40.2]} 24... Ne7 {[%clk 0:00:26]} 25.
Ke3 {[%clk 0:02:38.8]} 25... Bd7 {[%clk 0:00:25.3]} 26. g4 {[%clk 0:02:35.2]}
26... fxg4 {[%clk 0:00:22.6]} 27. fxg4 {[%clk 0:02:35.1]} 27... Nc8 {[%clk
0:00:22.5]} 28. Bd3 {[%clk 0:02:30.5]} 28... Nd6 {[%clk 0:00:21.6]} 29. h4
{[%clk 0:02:28.7]} 29... Bb5 {[%clk 0:00:17.3]} 30. Bxb5 {[%clk 0:02:28]} 30...
Nxb5 {[%clk 0:00:17]} 31. Bb2 {[%clk 0:02:28]} 31... Nd6 {[%clk 0:00:15.7]} 32.
g5 {[%clk 0:02:26.3]} 32... Nc4+ {[%clk 0:00:14.8]} 33. Kd3 {[%clk 0:02:23.2]}
33... Nxb2+ {[%clk 0:00:14.9]} 34. Kc2 {[%clk 0:02:21]} 34... Nc4 {[%clk
0:00:14.4]} 35. Kd3 {[%clk 0:02:19.7]} 35... Nd6 {[%clk 0:00:14.4]} 36. Nc3
{[%clk 0:02:16.1]} 36... h6 {[%clk 0:00:12.8]} 37. gxh6 {[%clk 0:01:52.2]} 37...
Bxh6 {[%clk 0:00:13.7]} 38. a4 {[%clk 0:01:52.9]} 38... Ke7 {[%clk 0:00:12.2]}
39. Ne2 {[%clk 0:01:40]} 39... Nf7 {[%clk 0:00:10.7]} 40. e5 {[%clk 0:01:37.2]}
40... Nd8 {[%clk 0:00:09]} 41. Ng3 {[%clk 0:01:35.1]} 41... Nc6 {[%clk
0:00:08.4]} 42. h5 {[%clk 0:01:35.5]} 42... gxh5 {[%clk 0:00:04.4]} 43. Nxh5
{[%clk 0:01:35.4]} 43... Nb4+ {[%clk 0:00:04.3]} 44. Kc4 {[%clk 0:01:33.4]}
44... Nd5 {[%clk 0:00:03.9]} 45. Ng3 {[%clk 0:01:33.2]} 45... a6 {[%clk
0:00:03.9]} 46. Ne4 {[%clk 0:01:32.2]} 46... Kd7 {[%clk 0:00:03.6]} 47. Nd6
{[%clk 0:01:29.5]} 47... Kc6 {[%clk 0:00:03.5]} 48. Ne4 {[%clk 0:01:28.1]} 48...
Bf8 {[%clk 0:00:03.6]} 49. Nf2 {[%clk 0:01:24.3]} 49... Be7 {[%clk 0:00:03.2]}
50. Nd3 {[%clk 0:01:22.9]} 50... b5+ {[%clk 0:00:03]} 51. axb5+ {[%clk
0:01:21.7]} 51... axb5+ {[%clk 0:00:03.9]} 52. Kb3 {[%clk 0:01:21.2]} 52... Bf8
{[%clk 0:00:03.6]} 53. Nb2 {[%clk 0:01:16]} 53... Nb6 {[%clk 0:00:03.5]} 54. Nd1
{[%clk 0:01:14.4]} 54... Kd5 {[%clk 0:00:03.9]} 55. Nc3+ {[%clk 0:01:13.5]}
55... Kxd4 {[%clk 0:00:03.6]} 56. Nxb5+ {[%clk 0:01:13.5]} 56... Kxe5 {[%clk
0:00:04.1]} 57. Kc3 {[%clk 0:01:10.2]} 57... Nd5+ {[%clk 0:00:04.1]} 58. Kd3
{[%clk 0:01:08.2]} 58... Bc5 {[%clk 0:00:04.2]} 59. Kc4 {[%clk 0:01:07.3]} 59...
Bf2 {[%clk 0:00:03.7]} 60. Na3 {[%clk 0:01:04.9]} 60... Nf4 {[%clk 0:00:03.8]}
61. Nc2 {[%clk 0:01:03.5]} 61... Ke4 {[%clk 0:00:03.2]} 62. Kc3 {[%clk
0:01:02.6]} 62... e5 {[%clk 0:00:03.7]} 63. Na3 {[%clk 0:00:57.7]} 63... Kf3
{[%clk 0:00:03.7]} 64. Nc4 {[%clk 0:00:56.2]} 64... e4 {[%clk 0:00:04.3]} 65.
Nd2+ {[%clk 0:00:54.9]} 65... Ke3 {[%clk 0:00:03]} 66. Nxe4 {[%clk 0:00:54.8]}
66... Kxe4 {[%clk 0:00:03.8]} 67. Kc4 {[%clk 0:00:53.9]} 67... Bd4 {[%clk
0:00:04.7]} 68. Kb3 {[%clk 0:00:52.1]} 68... Kd5 {[%clk 0:00:05.6]} 69. Kb4
{[%clk 0:00:50.9]} 69... Ne6 {[%clk 0:00:03.6]} 70. Kb5 {[%clk 0:00:50]} 70...
Bc3 {[%clk 0:00:02.8]} 71. Kb6 {[%clk 0:00:48.9]} 71... Nd4 {[%clk 0:00:02.7]}
72. Kc7 {[%clk 0:00:47.9]} 72... Ke6 {[%clk 0:00:01.5]} 73. Kb6 {[%clk
0:00:46.4]} 73... Bb4 {[%clk 0:00:02.4]} 74. Kc7 {[%clk 0:00:44.7]} 74... Ke7
{[%clk 0:00:02.9]} 75. Kb6 {[%clk 0:00:43.6]} 75... Kd7 {[%clk 0:00:02.9]} 76.
Kb7 {[%clk 0:00:43.2]} 76... Bc5 {[%clk 0:00:02.4]} 77. Kb8 {[%clk 0:00:40.2]}
77... Kc6 {[%clk 0:00:01.1]} 78. Kc8 {[%clk 0:00:39.2]} 78... Bb6 {[%clk
0:00:02]} 79. Kb8 {[%clk 0:00:38.3]} 79... Nb5 {[%clk 0:00:02.9]} 80. Kc8 {[%clk
0:00:36.1]} 80... Na7+ {[%clk 0:00:03.3]} 81. Kb8 {[%clk 0:00:35.2]} 81... Bc5
{[%clk 0:00:04.2]} 82. Ka8 {[%clk 0:00:33.8]} 82... Kb6 {[%clk 0:00:04.9]} 83.
Kb8 {[%clk 0:00:32.9]} 83... Bd6+ {[%clk 0:00:05.1]} 84. Ka8 {[%clk 0:00:32.5]}
84... Bc5 {[%clk 0:00:04.7]} 85. Kb8 {[%clk 0:00:31.8]} 85... Nb5 {[%clk
0:00:05.6]} 86. Ka8 {[%clk 0:00:31.2]} 86... Nc7+ {[%clk 0:00:06]} 87. Kb8
{[%clk 0:00:31.3]} 87... Kc6 {[%clk 0:00:06.7]} 88. Kc8 {[%clk 0:00:31.2]} 88...
Ba7 {[%clk 0:00:06.7]} 89. Kd8 {[%clk 0:00:30.9]} 89... Nd5 {[%clk 0:00:06.4]}
90. Kc8 {[%clk 0:00:31.2]} 90... Ne7+ {[%clk 0:00:05.7]} 91. Kd8 {[%clk
0:00:31.1]} 91... Kd6 {[%clk 0:00:06.6]} 92. Ke8 {[%clk 0:00:31.2]} 92... Ke6
{[%clk 0:00:07]} 93. Kd8 {[%clk 0:00:31.5]} 93... Bb6+ {[%clk 0:00:07.6]} 94.
Ke8 {[%clk 0:00:31.4]} 94... Bc7 {[%clk 0:00:07.6]} 95. Kf8 {[%clk 0:00:31.5]}
95... Nf5 {[%clk 0:00:07.9]} 96. Ke8 {[%clk 0:00:31.6]} 96... Ng7+ {[%clk
0:00:07.8]} 97. Kf8 {[%clk 0:00:31.7]} 97... Kf6 {[%clk 0:00:08.7]} 98. Kg8
{[%clk 0:00:25.4]} 98... Bd6 {[%clk 0:00:08.5]} 99. Kh7 {[%clk 0:00:25.2]} 99...
Kf7 {[%clk 0:00:08.6]} 100. Kh6 {[%clk 0:00:25.5]} 100... Bf4+ {[%clk
0:00:09.2]} 101. Kh7 {[%clk 0:00:25.6]} 101... Ne6 {[%clk 0:00:09.7]} 102. Kh8
{[%clk 0:00:25.5]} 102... Be3 {[%clk 0:00:09.5]} 103. Kh7 {[%clk 0:00:25.7]}
103... Nf8+ {[%clk 0:00:10.1]} 104. Kh8 {[%clk 0:00:24.3]} 104... Bd4# {[%clk
0:00:10.7]} 0-1